[Event "European Rapid Championship 2021"]
[Site "Katowice"]
[Date "2021.12.19"]
[Round "9.13"]
[White "Kovalenko, Igor"]
[Black "Grabarczyk, Miroslaw"]
[Result "1/2-1/2"]
[ECO "D31"]
[WhiteElo "2649"]
[BlackElo "2373"]
[Annotator "ChessBase"]
[PlyCount "256"]
[EventDate "2021.12.18"]
[EventType "swiss"]
[EventCountry "POL"]
[SourceTitle "playchess.com"]
[Source "ChessBase"]
[SourceQuality "1"]
[TimeControl "900+10"]

1. d4 {[%emt 0:00:02]} d5 {[%emt 0:00:03]} 2. c4 {[%emt 0:00:02]} e6 {[%emt 0:
00:02]} 3. Nc3 {[%emt 0:00:00]} Be7 {[%emt 0:00:03]} 4. Bf4 {[%emt 0:00:03]}
Nf6 {[%emt 0:00:02]} 5. e3 {[%emt 0:00:01]} O-O {[%emt 0:00:02]} 6. a3 {
[%emt 0:00:02]} Nbd7 {[%emt 0:00:02]} 7. Nb5 {[%emt 0:00:03]} Ne8 {[%emt 0:00:
12]} 8. Nf3 {[%emt 0:00:07]} c6 {[%emt 0:00:34]} 9. Nc3 {[%emt 0:00:02]} Nef6 {
[%emt 0:00:02]} 10. h3 {[%emt 0:00:27]} c5 {[%emt 0:02:15]} 11. cxd5 {[%emt 0:
03:06]} Nxd5 {[%emt 0:00:03]} 12. Nxd5 {[%emt 0:00:01]} exd5 {[%emt 0:00:02]}
13. dxc5 {[%emt 0:00:01]} Nxc5 {[%emt 0:00:04]} 14. Rc1 {[%emt 0:00:57]} Ne6 {
[%emt 0:01:03]} 15. Be5 {[%emt 0:00:07]} Bf6 {[%emt 0:00:02]} 16. Bc3 {[%emt 0:
07:56]} Bxc3+ {[%emt 0:01:52]} 17. Rxc3 {[%emt 0:00:01]} Qb6 {[%emt 0:00:03]}
18. Rb3 {[%emt 0:01:04]} Qa5+ {[%emt 0:00:03]} 19. Rb4 {[%emt 0:00:23]} d4 {
[%emt 0:01:50]} 20. Nxd4 {[%emt 0:00:57]} Nxd4 {[%emt 0:00:59]} 21. Qxd4 {
[%emt 0:00:45]} Rd8 {[%emt 0:00:11]} 22. Qf4 {[%emt 0:00:47]} Qc5 {[%emt 0:01:
24]} 23. Rc4 {[%emt 0:00:16]} Qa5+ {[%emt 0:00:03]} 24. Rb4 {[%emt 0:00:01]}
Qc5 {[%emt 0:00:01]} 25. Bc4 {[%emt 0:00:15]} Be6 {[%emt 0:00:03]} 26. O-O {
[%emt 0:00:03]} a5 {[%emt 0:00:15]} 27. Bxe6 {[%emt 0:00:02]} axb4 {[%emt 0:00:
02]} 28. Bxf7+ {[%emt 0:00:09]} Kh8 {[%emt 0:00:02]} 29. axb4 {[%emt 0:00:02]}
Qd6 {[%emt 0:00:48]} 30. Qxd6 {[%emt 0:00:23]} Rxd6 {[%emt 0:00:01]} 31. b5 {
[%emt 0:00:01]} Rd2 {[%emt 0:00:18]} 32. b3 {[%emt 0:00:03]} g6 {[%emt 0:00:18]
} 33. e4 {[%emt 0:00:18]} Raa2 {[%emt 0:00:18]} 34. h4 {[%emt 0:00:53]} Kg7 {
[%emt 0:00:12]} 35. Bd5 {[%emt 0:00:01]} b6 {[%emt 0:00:01]} 36. g3 {[%emt 0:
00:03]} Kf6 {[%emt 0:00:11]} 37. Kg2 {[%emt 0:00:04]} Ke5 {[%emt 0:00:18]} 38.
Kf3 {[%emt 0:00:08]} h6 {[%emt 0:00:03]} 39. Bc4 {[%emt 0:00:51]} Rdc2 {
[%emt 0:00:04]} 40. Bf7 {[%emt 0:00:46]} g5 {[%emt 0:01:19]} 41. hxg5 {[%emt 0:
00:14]} hxg5 {[%emt 0:00:01]} 42. Bc4 {[%emt 0:00:03]} Rab2 {[%emt 0:00:18]}
43. Bd5 {[%emt 0:00:10]} Ra2 {[%emt 0:00:06]} 44. Bc4 {[%emt 0:00:10]} Rab2 {
[%emt 0:00:02]} 45. Bg8 {[%emt 0:00:15]} Ra2 {[%emt 0:00:18]} 46. Bd5 {[%emt 0:
00:03]} Rab2 {[%emt 0:00:01]} 47. Bc4 {[%emt 0:00:01]} Ra2 {[%emt 0:00:09]} 48.
Ke3 {[%emt 0:00:13]} Rc3+ {[%emt 0:00:02]} 49. Bd3 {[%emt 0:00:01]} g4 {
[%emt 0:00:16]} 50. f4+ {[%emt 0:00:02]} gxf3 {[%emt 0:00:01]} 51. Rxf3 {
[%emt 0:00:01]} Rxb3 {[%emt 0:00:12]} 52. Rf5+ {[%emt 0:00:09]} Ke6 {[%emt 0:
00:02]} 53. Rd5 {[%emt 0:00:05]} Rg2 {[%emt 0:00:41]} 54. Kf3 {[%emt 0:00:01]}
Rd2 {[%emt 0:00:07]} 55. Ke3 {[%emt 0:00:01]} Rg2 {[%emt 0:00:02]} 56. Kf4 {
[%emt 0:00:01]} Rf2+ {[%emt 0:00:05]} 57. Kg4 {[%emt 0:01:11]} Rc3 {[%emt 0:00:
28]} 58. Rd8 {[%emt 0:00:13]} Ke7 {[%emt 0:00:14]} 59. Rd5 {[%emt 0:00:03]} Rd2
{[%emt 0:00:09]} 60. Bc4 {[%emt 0:00:17]} Rxd5 {[%emt 0:00:12]} 61. Bxd5 {
[%emt 0:00:02]} Rc5 {[%emt 0:01:15]} 62. Bc6 {[%emt 0:00:01]} Kf6 {[%emt 0:00:
02]} 63. Kf4 {[%emt 0:00:01]} Re5 {[%emt 0:00:02]} 64. Bd5 {[%emt 0:00:13]} Rg5
{[%emt 0:00:02]} 65. g4 {[%emt 0:00:01]} Re5 {[%emt 0:00:01]} 66. Bc6 {[%emt 0:
00:17]} Rg5 {[%emt 0:00:03]} 67. Bd7 {[%emt 0:00:03]} Rc5 {[%emt 0:00:02]} 68.
Be8 {[%emt 0:00:19]} Re5 {[%emt 0:00:08]} 69. Bc6 {[%emt 0:00:18]} Rg5 {
[%emt 0:00:07]} 70. Bd7 {[%emt 0:00:54]} Rc5 {[%emt 0:00:08]} 71. Be8 {[%emt 0:
00:05]} Re5 {[%emt 0:00:03]} 72. Bc6 {[%emt 0:00:06]} Rg5 {[%emt 0:00:03]} 73.
Bd5 {[%emt 0:00:02]} Re5 {[%emt 0:00:03]} 74. Bc6 {[%emt 0:00:30]} Rg5 {
[%emt 0:00:05]} 75. Bd7 {[%emt 0:00:02]} Rc5 {[%emt 0:00:03]} 76. Ke3 {[%emt 0:
00:03]} Ke5 {[%emt 0:00:08]} 77. g5 {[%emt 0:00:02]} Rc3+ {[%emt 0:00:05]} 78.
Kf2 {[%emt 0:00:11]} Kxe4 {[%emt 0:00:16]} 79. g6 {[%emt 0:00:04]} Kf4 {
[%emt 0:00:02]} 80. Be8 {[%emt 0:00:07]} Rg3 {[%emt 0:00:11]} 81. Bf7 {[%emt 0:
00:08]} Rg5 {[%emt 0:00:07]} 82. Ke2 {[%emt 0:00:06]} Ke4 {[%emt 0:00:26]} 83.
Be8 {[%emt 0:00:10]} Ke5 {[%emt 0:00:17]} 84. Kd3 {[%emt 0:00:08]} Rg3+ {
[%emt 0:00:02]} 85. Kc4 {[%emt 0:00:04]} Rg4+ {[%emt 0:00:02]} 86. Kd3 {
[%emt 0:00:04]} Kd6 {[%emt 0:00:20]} 87. Kc3 {[%emt 0:00:16]} Kd5 {[%emt 0:00:
20]} 88. Kd3 {[%emt 0:00:12]} Rg3+ {[%emt 0:00:02]} 89. Ke2 {[%emt 0:00:02]}
Ke6 {[%emt 0:00:07]} 90. Kf2 {[%emt 0:00:08]} Rg5 {[%emt 0:00:11]} 91. Kf3 {
[%emt 0:00:07]} Kf6 {[%emt 0:00:30]} 92. Kf4 {[%emt 0:00:08]} Rf5+ {[%emt 0:00:
06]} 93. Kg4 {[%emt 0:00:13]} Re5 {[%emt 0:00:04]} 94. Bf7 {[%emt 0:00:04]}
Rxb5 {[%emt 0:00:05]} 95. Kf4 {[%emt 0:00:02]} Rg5 {[%emt 0:00:32]} 96. Ke4 {
[%emt 0:00:01]} Ke7 {[%emt 0:00:36]} 97. Kf4 {[%emt 0:00:07]} Rg1 {[%emt 0:00:
10]} 98. Ke5 {[%emt 0:00:02]} Rg5+ {[%emt 0:00:50]} 99. Kf4 {[%emt 0:00:09]}
Kf6 {[%emt 0:00:04]} 100. Ke4 {[%emt 0:00:01]} Rc5 {[%emt 0:00:12]} 101. Kd4 {
[%emt 0:00:04]} Rc8 {[%emt 0:00:09]} 102. Kd3 {[%emt 0:00:46]} b5 {[%emt 0:00:
32]} 103. Kd2 {[%emt 0:00:05]} b4 {[%emt 0:00:07]} 104. Kd3 {[%emt 0:00:01]}
Rc3+ {[%emt 0:00:04]} 105. Kd2 {[%emt 0:00:01]} Rg3 {[%emt 0:00:12]} 106. Kc2 {
[%emt 0:00:01]} Ke5 {[%emt 0:00:05]} 107. Kb2 {[%emt 0:00:00]} Kd4 {[%emt 0:00:
02]} 108. Kc2 {[%emt 0:00:09]} Kc5 {[%emt 0:00:30]} 109. Kb2 {[%emt 0:00:01]}
Kb5 {[%emt 0:00:03]} 110. Be8+ {[%emt 0:00:02]} Ka5 {[%emt 0:00:01]} 111. Bf7 {
[%emt 0:00:01]} Rg5 {[%emt 0:00:33]} 112. Kb3 {[%emt 0:00:04]} Kb5 {[%emt 0:00:
11]} 113. Be8+ {[%emt 0:00:01]} Kc5 {[%emt 0:00:02]} 114. Bf7 {[%emt 0:00:01]}
Rg3+ {[%emt 0:00:04]} 115. Kb2 {[%emt 0:00:01]} Kb6 {[%emt 0:00:43]} 116. Be8 {
[%emt 0:00:14]} Ka5 {[%emt 0:00:05]} 117. Bf7 {[%emt 0:00:01]} Kb6 {[%emt 0:00:
10]} 118. Be8 {[%emt 0:00:02]} Ka5 {[%emt 0:01:47]} 119. Bf7 {[%emt 0:00:03]}
Rg1 {[%emt 0:00:03]} 120. Be8 {[%emt 0:00:07]} Rg2+ {[%emt 0:00:19]} 121. Kb3 {
[%emt 0:00:03]} Rg3+ {[%emt 0:00:02]} 122. Kb2 {[%emt 0:00:01]} b3 {[%emt 0:00:
28]} 123. Ka3 {[%emt 0:00:11]} Kb6 {[%emt 0:00:33]} 124. Bf7 {[%emt 0:00:03]}
Kc5 {[%emt 0:00:02]} 125. Bxb3 {[%emt 0:00:07]} Rxg6 {[%emt 0:00:02]} 126. Bf7
{[%emt 0:00:24]} Rg7 {[%emt 0:00:08]} 127. Be6 {[%emt 0:00:03]} Rg3+ {[%emt 0:
00:05]} 128. Kb2 {[%emt 0:00:02]} Kb4 1/2-1/2

[Event "European Rapid Championship 2021"]
[Site "Katowice"]
[Date "2021.12.19"]
[Round "9.13"]
[White "Galuszka, Tomasz"]
[Black "Przybylski, Wojciech"]
[Result "1/2-1/2"]
[ECO "C42"]
[WhiteElo "1886"]
[BlackElo "2321"]
[Annotator "NA"]
[PlyCount "122"]
[EventDate "2021.12.18"]
[EventType "swiss"]
[EventCountry "POL"]
[SourceTitle "playchess.com"]
[Source "ChessBase"]
[SourceQuality "1"]
[TimeControl "900+10"]

1. e4 {[%emt 0:00:03]} e5 {[%emt 0:00:02]} 2. Nf3 {[%emt 0:00:03]} Nf6 {
[%emt 0:00:05]} 3. Nxe5 {[%emt 0:00:02]} d6 {[%emt 0:00:02]} 4. Nf3 {[%emt 0:
00:02]} Nxe4 {[%emt 0:00:03]} 5. d4 {[%emt 0:00:02]} d5 {[%emt 0:00:03]} 6. Bd3
{[%emt 0:00:06]} Bd6 {[%emt 0:00:03]} 7. O-O {[%emt 0:00:05]} O-O {[%emt 0:00:
03]} 8. c4 {[%emt 0:00:04]} c6 {[%emt 0:00:02]} 9. Nc3 {[%emt 0:00:02]} Nxc3 {
[%emt 0:00:08]} 10. bxc3 {[%emt 0:00:03]} Bg4 {[%emt 0:00:27]} 11. Rb1 {
[%emt 0:02:10]} dxc4 {[%emt 0:00:17]} 12. Bxc4 {[%emt 0:00:03]} b5 {[%emt 0:00:
21]} 13. Be2 {[%emt 0:00:09]} Qc7 {[%emt 0:02:15]} 14. h3 {[%emt 0:00:12]} Be6
{[%emt 0:03:34]} 15. a4 {[%emt 0:00:19]} a6 {[%emt 0:00:07]} 16. Ng5 {[%emt 0:
00:53]} Bd5 {[%emt 0:00:38]} 17. Qc2 {[%emt 0:01:39]} g6 {[%emt 0:02:18]} 18.
c4 {[%emt 0:01:45]} bxc4 {[%emt 0:01:22]} 19. Bxc4 {[%emt 0:00:05]} Bxc4 {
[%emt 0:03:32]} 20. Qxc4 {[%emt 0:00:03]} Nd7 {[%emt 0:00:03]} 21. Ne4 {
[%emt 0:01:16]} a5 {[%emt 0:00:56]} 22. Rb3 {[%emt 0:03:05]} Rab8 {[%emt 0:01:
20]} 23. Bh6 {[%emt 0:04:38]} Rfe8 {[%emt 0:00:20]} 24. Rf3 {[%emt 0:00:04]}
Re7 {[%emt 0:00:38]} 25. Nxd6 {[%emt 0:00:11]} Qxd6 {[%emt 0:00:02]} 26. Bf4 {
[%emt 0:00:02]} Qb4 {[%emt 0:00:26]} 27. Qxc6 {[%emt 0:00:15]} Rb6 {[%emt 0:00:
18]} 28. Qc8+ {[%emt 0:00:52]} Kg7 {[%emt 0:00:00]} 29. Qc1 {[%emt 0:00:20]}
Re8 {[%emt 0:00:20]} 30. Bh6+ {[%emt 0:00:27]} Kg8 {[%emt 0:00:01]} 31. Re3 {
[%emt 0:00:19]} Rbb8 {[%emt 0:00:20]} 32. Rxe8+ {[%emt 0:00:23]} Rxe8 {[%emt 0:
00:00]} 33. d5 {[%emt 0:00:08]} Qxa4 {[%emt 0:00:07]} 34. Re1 {[%emt 0:00:14]}
Nf6 {[%emt 0:00:20]} 35. d6 {[%emt 0:00:31]} Qd7 {[%emt 0:00:13]} 36. Rxe8+ {
[%emt 0:00:20]} Nxe8 {[%emt 0:00:02]} 37. Bf4 {[%emt 0:00:08]} a4 {[%emt 0:00:
03]} 38. Qa3 {[%emt 0:00:07]} Kg7 {[%emt 0:00:14]} 39. h4 {[%emt 0:00:07]} f6 {
[%emt 0:00:02]} 40. Qc5 {[%emt 0:00:09]} h6 {[%emt 0:00:08]} 41. Bg3 {[%emt 0:
00:14]} Kf7 {[%emt 0:00:27]} 42. Qc4+ {[%emt 0:00:03]} Kg7 {[%emt 0:00:02]} 43.
Qc5 {[%emt 0:00:07]} Kf7 {[%emt 0:00:01]} 44. Qc4+ {[%emt 0:00:01]} Kg7 {
[%emt 0:00:01]} 45. Qc5 {[%emt 0:00:01]} h5 {[%emt 0:00:12]} 46. Kh2 {[%emt 0:
00:21]} Kf7 {[%emt 0:00:03]} 47. Qc4+ {[%emt 0:00:02]} Kf8 {[%emt 0:00:09]} 48.
Qe4 {[%emt 0:00:10]} Kf7 {[%emt 0:00:17]} 49. Qc4+ {[%emt 0:00:02]} Kf8 {
[%emt 0:00:02]} 50. Qe4 {[%emt 0:00:02]} Kf7 {[%emt 0:00:35]} 51. Qc4+ {
[%emt 0:00:01]} Kg7 {[%emt 0:00:13]} 52. Qc5 {[%emt 0:00:03]} Kf8 {[%emt 0:00:
13]} 53. Qb4 {[%emt 0:00:12]} Ng7 {[%emt 0:00:11]} 54. Qb8+ {[%emt 0:00:42]}
Kf7 {[%emt 0:00:01]} 55. Qc7 {[%emt 0:00:08]} Ke8 {[%emt 0:00:04]} 56. Qb8+ {
[%emt 0:00:06]} Kf7 {[%emt 0:00:01]} 57. Qc7 {[%emt 0:00:01]} Ke8 {[%emt 0:00:
06]} 58. Qb8+ {[%emt 0:00:01]} Kf7 {[%emt 0:00:37]} 59. Qc7 {[%emt 0:00:02]}
Ke8 {[%emt 0:00:02]} 60. Qb8+ {[%emt 0:00:01]} Kf7 {[%emt 0:00:21]} 61. Qc7 {
[%emt 0:00:01]} Ke8 {[%emt 0:00:12]} 1/2-1/2

[Event "European Rapid Championship 2021"]
[Site "Katowice"]
[Date "2021.12.19"]
[Round "9.14"]
[White "Sanz Wawer, Daniel"]
[Black "Grzesik, Gracjan"]
[Result "1-0"]
[ECO "B60"]
[WhiteElo "2371"]
[BlackElo "1992"]
[Annotator "NA"]
[PlyCount "91"]
[EventDate "2021.12.18"]
[EventType "swiss"]
[EventCountry "POL"]
[SourceTitle "playchess.com"]
[Source "ChessBase"]
[SourceQuality "1"]
[TimeControl "900+10"]

1. e4 {[%emt 0:00:01]} c5 {[%emt 0:00:01]} 2. Nf3 {[%emt 0:00:03]} d6 {[%emt 0:
00:01]} 3. d4 {[%emt 0:00:02]} cxd4 {[%emt 0:00:02]} 4. Nxd4 {[%emt 0:00:01]}
Nf6 {[%emt 0:00:02]} 5. Nc3 {[%emt 0:00:01]} Nc6 {[%emt 0:00:36]} 6. Bg5 {
[%emt 0:00:06]} Qb6 {[%emt 0:00:02]} 7. Nb3 {[%emt 0:00:30]} e6 {[%emt 0:00:16]
} 8. f4 {[%emt 0:01:50]} Be7 {[%emt 0:00:27]} 9. Qe2 {[%emt 0:00:35]} a6 {
[%emt 0:01:35]} 10. O-O-O {[%emt 0:00:04]} Qc7 {[%emt 0:00:13]} 11. g4 {
[%emt 0:00:49]} O-O {[%emt 0:01:52]} 12. Bg2 {[%emt 0:00:03]} Rb8 {[%emt 0:00:
37]} 13. Rd3 {[%emt 0:00:09]} Rd8 {[%emt 0:02:16]} 14. Kb1 {[%emt 0:00:23]} b5
{[%emt 0:01:00]} 15. Bxf6 {[%emt 0:00:07]} Bxf6 {[%emt 0:01:00]} 16. g5 {
[%emt 0:00:01]} Be7 {[%emt 0:00:51]} 17. h4 {[%emt 0:02:03]} b4 {[%emt 0:01:15]
} 18. Nd1 {[%emt 0:00:02]} a5 {[%emt 0:00:07]} 19. g6 {[%emt 0:00:06]} fxg6 {
[%emt 0:02:04]} 20. h5 {[%emt 0:02:07]} g5 {[%emt 0:00:12]} 21. Qg4 {[%emt 0:
02:22]} a4 {[%emt 0:00:28]} 22. Nc1 {[%emt 0:00:10]} Bd7 {[%emt 0:01:48]} 23.
h6 {[%emt 0:00:46]} g6 {[%emt 0:00:08]} 24. e5 {[%emt 0:00:50]} gxf4 {[%emt 0:
01:43]} 25. exd6 {[%emt 0:02:26]} Bxd6 {[%emt 0:00:01]} 26. Bxc6 {[%emt 0:00:
13]} Qxc6 {[%emt 0:00:11]} 27. Rh2 {[%emt 0:00:01]} Be7 {[%emt 0:00:41]} 28.
Rhd2 {[%emt 0:00:24]} Be8 {[%emt 0:00:07]} 29. Qxf4 {[%emt 0:00:11]} Rxd3 {
[%emt 0:00:11]} 30. Qe5 {[%emt 0:00:17]} Bf6 {[%emt 0:00:12]} 31. Qxf6 {
[%emt 0:00:20]} Rd7 {[%emt 0:00:01]} 32. Nd3 {[%emt 0:00:19]} Rf7 {[%emt 0:00:
06]} 33. Qe5 {[%emt 0:00:05]} Rd8 {[%emt 0:00:09]} 34. Rf2 {[%emt 0:00:10]} Qd6
{[%emt 0:00:20]} 35. Qe3 {[%emt 0:00:13]} e5 {[%emt 0:00:07]} 36. Rxf7 {
[%emt 0:00:15]} Bxf7 {[%emt 0:00:01]} 37. N1f2 {[%emt 0:00:06]} b3 {[%emt 0:00:
20]} 38. Ne4 {[%emt 0:00:59]} bxa2+ {[%emt 0:00:09]} 39. Ka1 {[%emt 0:00:02]}
Qe7 {[%emt 0:00:11]} 40. Qb6 {[%emt 0:00:36]} Rf8 {[%emt 0:00:13]} 41. Nf6+ {
[%emt 0:00:22]} Kh8 {[%emt 0:00:01]} 42. Nd7 {[%emt 0:00:11]} Re8 {[%emt 0:00:
21]} 43. N7xe5 {[%emt 0:00:15]} Be6 {[%emt 0:00:06]} 44. Qd4 {[%emt 0:00:17]}
Qf6 {[%emt 0:00:06]} 45. Nxg6+ {[%emt 0:00:06]} Kg8 {[%emt 0:00:19]} 46. Qxf6 {
[%emt 0:00:02]} 1-0

[Event "European Rapid Championship 2021"]
[Site "Katowice"]
[Date "2021.12.19"]
[Round "9.14"]
[White "Kulon, Klaudia"]
[Black "Andersen, Mads"]
[Result "0-1"]
[ECO "A11"]
[WhiteElo "2328"]
[BlackElo "2574"]
[Annotator "ChessBase"]
[PlyCount "90"]
[EventDate "2021.12.18"]
[EventType "swiss"]
[EventCountry "POL"]
[SourceTitle "playchess.com"]
[Source "ChessBase"]
[SourceQuality "1"]
[TimeControl "900+10"]

1. c4 {[%emt 0:00:01]} c6 {[%emt 0:00:04]} 2. g3 {[%emt 0:00:03]} d5 {[%emt 0:
00:02]} 3. Bg2 {[%emt 0:00:02]} Nf6 {[%emt 0:00:02]} 4. b3 {[%emt 0:00:02]} g6
{[%emt 0:00:15]} 5. Bb2 {[%emt 0:00:02]} Bg7 {[%emt 0:00:01]} 6. d4 {[%emt 0:
00:11]} O-O {[%emt 0:00:18]} 7. Nd2 {[%emt 0:00:01]} a5 {[%emt 0:00:50]} 8. a3
{[%emt 0:00:59]} b6 {[%emt 0:01:04]} 9. e3 {[%emt 0:00:24]} Ba6 {[%emt 0:00:19]
} 10. Rc1 {[%emt 0:00:11]} Nbd7 {[%emt 0:00:24]} 11. Ne2 {[%emt 0:00:07]} Re8 {
[%emt 0:00:22]} 12. O-O {[%emt 0:00:36]} e5 {[%emt 0:01:57]} 13. cxd5 {[%emt 0:
00:12]} cxd5 {[%emt 0:00:05]} 14. dxe5 {[%emt 0:01:32]} Nxe5 {[%emt 0:00:06]}
15. Bxe5 {[%emt 0:00:08]} Rxe5 {[%emt 0:00:03]} 16. Re1 {[%emt 0:01:12]} Qf8 {
[%emt 0:01:24]} 17. a4 {[%emt 0:00:42]} Ree8 {[%emt 0:01:53]} 18. Nd4 {[%emt 0:
00:15]} Rac8 {[%emt 0:00:07]} 19. Bh3 {[%emt 0:00:26]} Rc5 {[%emt 0:00:17]} 20.
Rxc5 {[%emt 0:01:17]} bxc5 {[%emt 0:00:14]} 21. Nc6 {[%emt 0:01:46]} Qd6 {
[%emt 0:00:29]} 22. Nxa5 {[%emt 0:00:26]} Qb6 {[%emt 0:00:11]} 23. b4 {[%emt 0:
00:08]} Qxb4 {[%emt 0:00:08]} 24. Nab3 {[%emt 0:00:14]} Bd3 {[%emt 0:02:42]}
25. Nf3 {[%emt 0:02:40]} c4 {[%emt 0:00:17]} 26. Nbd4 {[%emt 0:00:03]} Ne4 {
[%emt 0:00:10]} 27. Bd7 {[%emt 0:00:45]} Rf8 {[%emt 0:00:38]} 28. Bc6 {[%emt 0:
00:15]} Rd8 {[%emt 0:01:15]} 29. Qc1 {[%emt 0:00:06]} c3 {[%emt 0:00:34]} 30.
Bb5 {[%emt 0:00:14]} Bxb5 {[%emt 0:00:20]} 31. axb5 {[%emt 0:00:01]} Ra8 {
[%emt 0:00:42]} 32. Qc2 {[%emt 0:00:08]} Qc4 {[%emt 0:00:27]} 33. b6 {[%emt 0:
00:28]} Rb8 {[%emt 0:00:21]} 34. Rb1 {[%emt 0:00:11]} Bxd4 {[%emt 0:00:21]} 35.
Nxd4 {[%emt 0:00:19]} Qa6 {[%emt 0:00:40]} 36. Nc6 {[%emt 0:01:10]} Rxb6 {
[%emt 0:00:15]} 37. Rxb6 {[%emt 0:00:02]} Qxb6 {[%emt 0:00:04]} 38. Ne7+ {
[%emt 0:00:01]} Kg7 {[%emt 0:00:54]} 39. Nxd5 {[%emt 0:00:02]} Qb2 {[%emt 0:00:
00]} 40. Qxe4 {[%emt 0:00:34]} c2 {[%emt 0:00:02]} 41. Kg2 {[%emt 0:01:04]}
c1=Q {[%emt 0:00:05]} 42. Nf4 {[%emt 0:00:21]} Qcb1 {[%emt 0:00:25]} 43. Qe8 {
[%emt 0:00:21]} Qb7+ {[%emt 0:00:11]} 44. Kh3 {[%emt 0:00:10]} Qf5+ {[%emt 0:
00:09]} 45. g4 {[%emt 0:00:03]} Qf3+ {[%emt 0:00:02]} 0-1

[Event "European Rapid Championship 2021"]
[Site "Katowice"]
[Date "2021.12.19"]
[Round "9.15"]
[White "Mis, Mieszko"]
[Black "Laurusas, Tomas"]
[Result "1-0"]
[ECO "E46"]
[WhiteElo "2237"]
[BlackElo "2553"]
[Annotator "ChessBase"]
[PlyCount "107"]
[EventDate "2021.12.18"]
[EventType "swiss"]
[EventCountry "POL"]
[SourceTitle "playchess.com"]
[Source "ChessBase"]
[SourceQuality "1"]
[TimeControl "900+10"]

1. d4 {[%emt 0:00:03]} Nf6 {[%emt 0:00:01]} 2. c4 {[%emt 0:00:03]} e6 3. Nc3 {
[%emt 0:00:18]} Bb4 {[%emt 0:00:05]} 4. e3 {[%emt 0:00:14]} O-O {[%emt 0:00:08]
} 5. Bd2 {[%emt 0:00:07]} b6 {[%emt 0:02:51]} 6. Nf3 {[%emt 0:00:11]} Bb7 {
[%emt 0:00:19]} 7. Bd3 {[%emt 0:00:06]} c5 {[%emt 0:01:05]} 8. a3 {[%emt 0:00:
12]} Bxc3 {[%emt 0:00:02]} 9. Bxc3 {[%emt 0:00:04]} d6 {[%emt 0:00:06]} 10.
dxc5 {[%emt 0:00:42]} bxc5 {[%emt 0:00:07]} 11. Qc2 {[%emt 0:01:43]} e5 {
[%emt 0:00:52]} 12. Ng5 {[%emt 0:01:01]} h6 {[%emt 0:02:17]} 13. Nh7 {[%emt 0:
00:38]} Re8 {[%emt 0:00:23]} 14. Nxf6+ {[%emt 0:00:11]} Qxf6 {[%emt 0:00:01]}
15. Bh7+ {[%emt 0:03:08]} Kh8 {[%emt 0:00:03]} 16. Be4 {[%emt 0:00:02]} Nc6 {
[%emt 0:00:54]} 17. O-O-O {[%emt 0:01:48]} Qe6 {[%emt 0:02:58]} 18. Bd5 {
[%emt 0:00:32]} Qd7 {[%emt 0:00:05]} 19. f4 {[%emt 0:01:17]} exf4 {[%emt 0:01:
09]} 20. exf4 {[%emt 0:00:02]} Rad8 {[%emt 0:00:57]} 21. Qf2 {[%emt 0:00:25]}
Ne7 {[%emt 0:00:32]} 22. Bxf7 {[%emt 0:02:09]} Rf8 {[%emt 0:00:01]} 23. Bh5 {
[%emt 0:00:07]} Qf5 {[%emt 0:00:18]} 24. Rhe1 {[%emt 0:00:16]} Rd7 {[%emt 0:03:
12]} 25. g4 {[%emt 0:00:21]} Qxf4+ {[%emt 0:00:19]} 26. Qxf4 {[%emt 0:00:01]}
Rxf4 {[%emt 0:00:01]} 27. Be8 Rc7 28. Ba5 {[%emt 0:01:47]} Rxc4+ {[%emt 0:00:
16]} 29. Kb1 {[%emt 0:00:08]} Nd5 {[%emt 0:00:20]} 30. Bb5 {[%emt 0:01:21]} Re4
{[%emt 0:00:35]} 31. Rxe4 {[%emt 0:00:37]} Nc3+ {[%emt 0:00:00]} 32. Bxc3 {
[%emt 0:00:15]} Bxe4+ {[%emt 0:00:01]} 33. Bd3 {[%emt 0:00:07]} Bxd3+ {[%emt 0:
00:29]} 34. Rxd3 {[%emt 0:00:01]} Rd7 {[%emt 0:00:04]} 35. Rd5 {[%emt 0:00:25]}
Kg8 {[%emt 0:00:02]} 36. Be5 {[%emt 0:00:04]} Re7 {[%emt 0:00:01]} 37. Bxd6 {
[%emt 0:00:03]} Rd7 {[%emt 0:00:01]} 38. Rd2 {[%emt 0:00:09]} Kf7 {[%emt 0:00:
04]} 39. Rf2+ {[%emt 0:00:03]} Kg6 {[%emt 0:00:01]} 40. Bxc5 {[%emt 0:00:02]}
a6 {[%emt 0:00:02]} 41. Be3 {[%emt 0:00:53]} Rd3 {[%emt 0:00:03]} 42. Re2 {
[%emt 0:00:02]} h5 {[%emt 0:00:14]} 43. gxh5+ {[%emt 0:00:01]} Kxh5 {[%emt 0:
00:01]} 44. Kc2 {[%emt 0:00:01]} Rd7 {[%emt 0:00:03]} 45. Bd2 {[%emt 0:00:07]}
Kh4 {[%emt 0:00:04]} 46. Rg2 {[%emt 0:00:06]} Kh3 {[%emt 0:00:03]} 47. Rg6 {
[%emt 0:00:02]} Kxh2 {[%emt 0:00:07]} 48. Bc3 {[%emt 0:00:01]} Kh1 {[%emt 0:00:
06]} 49. Rxg7 {[%emt 0:00:03]} Rd6 {[%emt 0:00:02]} 50. Rf7 {[%emt 0:00:06]}
Rd5 {[%emt 0:00:04]} 51. Rf6 {[%emt 0:00:06]} a5 {[%emt 0:00:05]} 52. a4 {
[%emt 0:00:02]} Kg2 {[%emt 0:00:03]} 53. Ra6 {[%emt 0:00:02]} Rd2+ {[%emt 0:00:
03]} 54. Kxd2 {[%emt 0:00:03]} 1-0

[Event "European Rapid Championship 2021"]
[Site "Katowice"]
[Date "2021.12.19"]
[Round "9.15"]
[White "Rog, Bartlomiej"]
[Black "Semjonovs, Ilja"]
[Result "0-1"]
[ECO "B90"]
[WhiteElo "1859"]
[BlackElo "2383"]
[Annotator "NA"]
[PlyCount "56"]
[EventDate "2021.12.18"]
[EventType "swiss"]
[EventCountry "POL"]
[SourceTitle "playchess.com"]
[Source "ChessBase"]
[SourceQuality "1"]
[TimeControl "900+10"]

1. e4 {[%emt 0:00:02]} c5 {[%emt 0:00:01]} 2. Nf3 {[%emt 0:00:01]} d6 {[%emt 0:
00:01]} 3. d4 {[%emt 0:00:08]} cxd4 {[%emt 0:00:02]} 4. Nxd4 {[%emt 0:00:31]}
Nf6 {[%emt 0:00:02]} 5. Nc3 {[%emt 0:00:00]} a6 {[%emt 0:00:01]} 6. h3 {
[%emt 0:00:02]} e5 {[%emt 0:00:10]} 7. Nde2 {[%emt 0:00:00]} h5 {[%emt 0:00:21]
} 8. g3 {[%emt 0:00:14]} Be7 {[%emt 0:00:52]} 9. Bg2 {[%emt 0:00:03]} Nbd7 {
[%emt 0:00:42]} 10. a4 {[%emt 0:00:09]} b6 {[%emt 0:00:06]} 11. Nd5 {[%emt 0:
00:35]} Nxd5 {[%emt 0:00:41]} 12. Qxd5 {[%emt 0:00:01]} Rb8 {[%emt 0:00:03]}
13. Nc3 {[%emt 0:00:05]} Bb7 {[%emt 0:00:13]} 14. Qd1 {[%emt 0:00:05]} h4 {
[%emt 0:00:19]} 15. g4 {[%emt 0:00:28]} O-O {[%emt 0:00:30]} 16. O-O {[%emt 0:
01:06]} Nc5 {[%emt 0:02:38]} 17. Nd5 {[%emt 0:02:02]} Bg5 {[%emt 0:01:21]} 18.
Bxg5 {[%emt 0:00:59]} Qxg5 {[%emt 0:00:02]} 19. Nxb6 {[%emt 0:02:26]} Bxe4 {
[%emt 0:01:48]} 20. Qxd6 {[%emt 0:00:01]} Bxg2 {[%emt 0:00:04]} 21. Kxg2 {
[%emt 0:00:01]} Ne6 {[%emt 0:01:22]} 22. Nc4 {[%emt 0:01:46]} Qf4 {[%emt 0:01:
01]} 23. Qd3 {[%emt 0:04:13]} Rfd8 {[%emt 0:03:38]} 24. Qe2 {[%emt 0:00:11]}
Qd4 {[%emt 0:00:13]} 25. Kh2 {[%emt 0:01:19]} Nf4 {[%emt 0:00:02]} 26. Qxe5 {
[%emt 0:00:01]} Qxc4 {[%emt 0:00:01]} 27. Rad1 {[%emt 0:00:46]} Re8 {[%emt 0:
00:43]} 28. Qd6 {[%emt 0:00:03]} Qe4 {[%emt 0:00:10]} 0-1